[Event "New York Spring GM-A 2022"]
[Site "New York"]
[Date "2022.04.18"]
[Round "7.5"]
[White "Guo, Arthur"]
[Black "Kaliksteyn, Alexander"]
[Result "1/2-1/2"]
[ECO "B47"]
[WhiteElo "2412"]
[BlackElo "2379"]
[Annotator "TA"]
[PlyCount "112"]
[EventDate "2022.04.14"]
[EventType "tourn"]
[EventCountry "USA"]
[SourceTitle "playchess.com"]
[Source "ChessBase"]
[SourceQuality "1"]
[TimeControl "5400+30"]

{[%evp 11,112,15,22,18,28,16,17,19,31,21,25,25,27,33,17,13,32,23,25,25,48,10,34,24,32,28,20,37,37,35,24,17,10,10,11,16,30,30,27,0,0,0,0,0,0,0,0,0,0,0,0,0,0,0,0,0,0,0,0,0,0,0,0,0,0,0,0,0,0,0,0,0,0,0,0,0,0,0,0,0,0,0,0,0,0,0,0,0,0,0,0,0,0,0,0,0,0,0,0,0,0,0,0]} 1. e4 {[%emt 0:00:13]} c5 {[%emt 0:00:05]} 2. Nf3 {[%emt 0:00:09]} e6 {[%emt 0:00:10]} 3. d4 {[%emt 0:00:11]} cxd4 {[%emt 0:00:05]} 4. Nxd4 {[%emt 0:00:06]} Nc6 {[%emt 0:00:05]} 5. Nc3 {[%emt 0:00:23]} Qc7 {[%emt 0:00:10]} 6. Be2 {[%emt 0:00:23]} a6 {[%emt 0:00:32]} 7. Nxc6 {[%emt 0:00:24] B47: Sicilian: Taimanov: 5 Nc3 Qc7 6 f4, 6 g3 and 6 Be2.} bxc6 {[%emt 0:06:03]} 8. Qd3 $1 {[%emt 0:00:25][%mdl 4] now scores much better than the old 8.0-0.} Nf6 {[%emt 0:02:04]} 9. Qg3 {[%emt 0:00:33]} Qxg3 {[%emt 0:00:29]} 10. hxg3 {[%emt 0:00:06]} ({Don't play} 10. fxg3 d5 $15) 10... d5 {[%emt 0:00:08]} 11. g4 {[%emt 0:00:05]} Nxe4 {[%emt 0:25:06]} 12. Nxe4 {[%emt 0:00:16]} dxe4 {[%emt 0:00:01]} 13. Be3 {[%emt 0:00:18]} Bb7 {[%emt 0:02:12]} 14. Rh3 {[%emt 0:03:03][%mdl 1024] [#] White has compensation.} c5 $146 {[%emt 0:06:13]} ({Predecessor:} 14... Rd8 15. Bd2 Bd6 16. Rb3 Rd7 17. O-O-O f6 18. a4 Ke7 19. a5 Be5 20. c3 Rb8 {½-½ (94) Hameister,R (2421)-Dedina,M (2354) ICCF email 2017}) 15. O-O-O {[%emt 0:02:06]} h6 {[%emt 0:11:44]} 16. Bc4 {[%emt 0:21:52]} Be7 {[%emt 0:10:38]} 17. g5 {[%emt 0:09:34]} Rg8 {[%emt 0:04:43]} 18. gxh6 {[%emt 0:05:23]} gxh6 {[%emt 0:00:36]} 19. Rxh6 {[%emt 0:00:38]} Bg5 {[%emt 0:02:21]} 20. Bxg5 {[%emt 0:14:52]} Rxg5 {[%emt 0:00:06] [#]} 21. Bxe6 $1 {[%emt 0:01:06]} fxe6 {[%emt 0:00:19]} 22. Rh8+ {[%emt 0:00:04]} Kf7 {[%emt 0:00:25]} 23. Rh7+ {[%emt 0:00:05]} Kf6 {[%emt 0:02:27]} 24. Rxb7 {[%emt 0:00:05]} Rxg2 $11 {[%emt 0:00:04][%mdl 4096] Endgame KRR-KRR} 25. Rc7 {[%emt 0:05:23]} Rxf2 {[%emt 0:06:30] The position is equal.} 26. Rxc5 {[%emt 0:00:04]} Rg8 {[%emt 0:08:49]} 27. b4 {[%emt 0:00:50]} e5 {[%emt 0:03:34]} 28. Re1 {[%emt 0:01:59]} Kf5 {[%emt 0:00:26]} 29. Rc4 {[%emt 0:02:10]} Rgg2 {[%emt 0:00:41]} 30. a4 {[%emt 0:00:54]} Rf4 {[%emt 0:02:30][%cal Oe4e3]} 31. Re3 {[%emt 0:02:22]} Rgf2 {[%emt 0:01:52]} 32. b5 {[%emt 0:30:28]} axb5 {[%emt 0:00:06]} 33. axb5 {[%emt 0:00:00]} R2f3 {[%emt 0:00:37]} 34. Kd2 {[%emt 0:00:00] [#] aiming for Rxf3.} Rxe3 {[%emt 0:03:05]} 35. Kxe3 {[%emt 0:00:00] Strongly threatening b6. KR-KR} Rf3+ {[%emt 0:00:11]} 36. Ke2 {[%emt 0:00:00]} Rh3 {[%emt 0:00:57]} 37. Rc8 {[%emt 0:00:00]} Rh2+ {[%emt 0:00:37]} 38. Ke3 {[%emt 0:00:00] Rf8+ is the strong threat.} Rh3+ {[%emt 0:00:02]} 39. Kd2 {[%emt 0:00:00]} Rh2+ {[%emt 0:00:11]} 40. Kc3 {[%emt 0:00:00]} Rh3+ {[%emt 0:02:46]} 41. Kc4 {[%emt 0:00:00]} Rh2 {[%emt 0:00:02]} 42. c3 {[%emt 0:00:00]} Rb2 {[%emt 0:01:48] White must now prevent ...e3.} 43. Rf8+ {[%emt 0:00:00]} Ke6 {[%emt 0:00:30]} 44. Kc5 {[%emt 0:00:00]} e3 {[%emt 0:00:00][%cal Be4e3,Be3e2][%mdl 32] Hoping for ...e2.} 45. Rf1 {[%emt 0:00:00]} e2 {[%emt 0:00:00]} 46. Re1 {[%emt 0:02:16]} Kf5 {[%emt 0:00:00]} 47. c4 {[%emt 0:01:35]} Ke4 {[%emt 0:00:00]} 48. Kb6 {[%emt 0:00:21]} Kd3 {[%emt 0:00:21]} (48... Kd4 $5 49. c5 Kc4 50. Rc1+ Kd3 $11) 49. c5 {[%emt 0:00:03]} Kd2 {[%emt 0:00:08]} (49... e4 $5 50. c6 Kd2 $11) 50. Rxe2+ {[%emt 0:02:09]} Kxe2 {[%emt 0:00:02] KR-KPP} 51. c6 {[%emt 0:00:03]} e4 {[%emt 0:00:17]} 52. c7 {[%emt 0:00:06]} Rc2 {[%emt 0:00:06]} 53. Kb7 {[%emt 0:00:03]} e3 {[%emt 0:00:16]} 54. c8=Q {[%emt 0:00:52]} Rxc8 {[%emt 0:00:06]} 55. Kxc8 {[%emt 0:00:03]} Kf2 {[%emt 0:00:12] ( -> ...e2)} (55... Kd3 $5 56. b6 Ke4 $11) 56. b6 {[%emt 0:00:03]} e2 {[%emt 0:05:02] Weighted Error Value: White=0.02 (flawless) /Black=0.02 (flawless)} 1/2-1/2

[Event "New York Spring GM-A 2022"]
[Site "New York"]
[Date "2022.04.18"]
[Round "8.1"]
[White "Belous, Vladimir"]
[Black "Kaliksteyn, Alexander"]
[Result "1/2-1/2"]
[ECO "E01"]
[WhiteElo "2516"]
[BlackElo "2379"]
[Annotator "TA"]
[PlyCount "52"]
[EventDate "2022.04.14"]
[EventType "tourn"]
[EventCountry "USA"]
[SourceTitle "playchess.com"]
[Source "ChessBase"]
[SourceQuality "1"]
[TimeControl "5400+30"]

{[%evp 15,52,-7,0,-68,-62,-91,-86,-83,-81,-91,-82,-113,-95,-127,-92,-91,-97,-87,-97,-92,-90,-79,-81,-102,-101,-96,-72,-73,-72,-108,-104,-120,-133,-147,-112,-97,-124,-206,-58]} 1. d4 {[%emt 0:03:19]} d5 {[%emt 0:00:08]} 2. c4 {[%emt 0:00:04]} e6 {[%emt 0:00:10]} 3. Nc3 {[%emt 0:00:03]} c6 {[%emt 0:00:08]} 4. Nf3 {[%emt 0:00:04]} Nf6 {[%emt 0:00:45]} 5. g3 {[%emt 0:00:12]} dxc4 {[%emt 0:00:45]} 6. Bg2 {[%emt 0:00:50]} Nbd7 {[%emt 0:00:11]} 7. O-O {[%emt 0:01:13]} b5 {[%emt 0:01:39]} 8. e4 {[%emt 0:00:18]} Bb7 {[%emt 0:00:23]} 9. Re1 {[%emt 0:01:51] E01: Catalan: Early deviations.} (9. e5 $11 Nd5 10. Ng5) 9... Be7 $15 {[%emt 0:01:57]} 10. Qc2 {[%emt 0:02:17]} O-O {[%emt 0:00:51]} 11. Bf4 {[%emt 0:06:10] Black is better.} Re8 {[%emt 0:08:04]} 12. Rad1 {[%emt 0:03:26]} Qb6 {[%emt 0:03:12]} 13. a3 {[%emt 0:07:52]} a6 {[%emt 0:00:59] [#]} 14. Bc1 $146 {[%emt 0:08:52]} ({Predecessor:} 14. Bh3 Rad8 15. Ng5 Nf8 16. e5 Nd5 17. Bc1 c5 18. dxc5 Qxc5 19. Nce4 Qc7 20. Nd6 Bxd6 21. exd6 Qxd6 {0-1 (39) McTavish,D (2154)-Cormier,A (2250) Kitchener 2013}) 14... Rad8 {[%emt 0:03:07]} 15. e5 {[%emt 0:03:44] Strongly threatening Ng5.} Nd5 {[%emt 0:00:45]} 16. Ng5 {[%emt 0:01:12]} Nf8 {[%emt 0:03:06]} 17. Be4 {[%emt 0:01:49][%cal Re4h7]} f5 {[%emt 0:04:52]} 18. exf6 {[%emt 0:08:21]} Nxf6 {[%emt 0:00:12]} 19. Bg2 {[%emt 0:03:02]} c5 {[%emt 0:07:05] Threatens to win with ...Bxg2.} 20. dxc5 {[%emt 0:02:15] [#]} Rxd1 $1 {[%emt 0:08:09]} 21. Rxd1 {[%emt 0:02:24]} Bxc5 {[%emt 0:00:25]} 22. Nce4 {[%emt 0:00:06] Black must now prevent Nxf6+.} Nxe4 {[%emt 0:02:07]} 23. Nxe4 {[%emt 0:00:44]} Bd4 {[%emt 0:00:36]} 24. a4 {[%emt 0:03:47]} e5 {[%emt 0:11:06]} 25. axb5 {[%emt 0:01:15]} axb5 {[%emt 0:00:06]} 26. b3 {[%emt 0:00:02] [#]} (26. Bd2 $17) 26... Rc8 {[%emt 0:16:00] Weighted Error Value: White=0.22 (precise) /Black=0.09 (flawless)} (26... c3 $1 $19 27. b4 Ne6) 1/2-1/2

[Event "New York Spring GM-A 2022"]
[Site "New York"]
[Date "2022.04.18"]
[Round "8.2"]
[White "Barbosa, Oliver"]
[Black "Guo, Arthur"]
[Result "1-0"]
[ECO "A13"]
[WhiteElo "2505"]
[BlackElo "2412"]
[Annotator "TA"]
[PlyCount "101"]
[EventDate "2022.04.14"]
[EventType "tourn"]
[EventCountry "USA"]
[SourceTitle "playchess.com"]
[Source "ChessBase"]
[SourceQuality "1"]
[TimeControl "5400+30"]

{[%evp 10,101,16,14,22,0,0,0,0,0,6,0,0,0,0,-28,39,28,79,62,63,35,31,12,34,41,33,0,0,-2,-6,-15,-29,-29,-19,-23,-12,-54,70,-64,0,0,0,39,0,12,532,219,226,218,218,226,225,226,226,226,226,226,226,0,210,0,226,219,212,212,214,220,241,185,297,310,307,288,389,303,395,300,291,219,353,297,361,331,353,353,395,301,396,371,579,546,516,499]} 1. Nf3 {[%emt 0:00:15]} Nf6 {[%emt 0:00:28]} 2. g3 {[%emt 0:00:08]} e6 {[%emt 0:00:14]} 3. Bg2 {[%emt 0:00:18]} d5 {[%emt 0:00:12]} 4. O-O {[%emt 0:00:29]} c5 {[%emt 0:00:48]} 5. c4 {[%emt 0:00:53]} d4 {[%emt 0:00:24]} 6. e3 {[%emt 0:00:35][%cal Ob2b4]} Nc6 {[%emt 0:00:11] A13: English Opening: 1...e6.} 7. exd4 {[%emt 0:00:39]} cxd4 {[%emt 0:00:03]} 8. Re1 {[%emt 0:00:36]} Bd6 {[%emt 0:00:58] The position is equal.} 9. d3 {[%emt 0:01:13]} h6 {[%emt 0:00:11]} 10. b3 {[%emt 0:02:48][%cal Bb2b3,Bb3b4,Bb4b5][%mdl 32]} O-O {[%emt 0:00:25]} 11. Ba3 {[%emt 0:02:48]} e5 {[%emt 0:00:36]} 12. b4 {[%emt 0:12:40]} Re8 {[%emt 0:13:49]} (12... Nxb4 $11 13. Nxe5 Re8) 13. b5 {[%emt 0:04:40] [#]} Na5 $146 {[%emt 0:16:35]} (13... Nb4 $11 {remains equal.}) ({Predecessor:} 13... Nb8 14. c5 Bc7 15. Nbd2 Nd5 16. Nc4 Nc3 17. Qb3 Nd7 18. Nd6 Bxd6 19. cxd6 Qb6 {½-½ (31) Tomilova,E (2345)-Semenova,E (2282) Sochi 2019}) 14. Bxd6 $16 {[%emt 0:09:09]} Qxd6 {[%emt 0:00:04]} 15. Qa4 {[%emt 0:01:28]} (15. Qd2 $5 {[%cal Rd2a5]} Qc7 16. Rxe5 $1 $14) 15... b6 {[%emt 0:00:43]} 16. Qa3 $1 {[%emt 0:02:16]} Qb8 {[%emt 0:00:36]} (16... Qxa3 17. Nxa3 e4 18. dxe4 $16 (18. Nxd4 Bb7 $16)) 17. Nbd2 {[%emt 0:05:39][%cal Of3e5] And now Nxe5! would win.} Bb7 {[%emt 0:03:46]} 18. Re2 {[%emt 0:01:02]} (18. c5 $5 {[%cal Rc5c6]}) 18... a6 $1 {[%emt 0:04:58]} 19. Qb2 {[%emt 0:03:12]} axb5 {[%emt 0:04:52]} 20. Qxb5 {[%emt 0:02:39][%cal Re2e5]} Bc6 {[%emt 0:01:09]} 21. Qb2 {[%emt 0:03:21]} Nd7 {[%emt 0:00:19]} 22. Rae1 {[%emt 0:03:11]} f6 {[%emt 0:09:04]} 23. Ne4 {[%emt 0:11:35]} (23. Nxd4 $5 Bxg2 24. Kxg2 $11) 23... Nc5 {[%emt 0:07:39] [#]} (23... Qc7 $15) 24. Nh4 {[%emt 0:00:48]} (24. Nxd4 $1 $14 Bxe4 25. Bxe4) 24... Bxe4 {[%emt 0:06:20]} (24... Nxd3 25. Qb1 f5 26. Qxd3 $11) (24... Qc7 $15 25. Nxc5 bxc5) 25. Rxe4 $11 {[%emt 0:08:40]} (25. Bxe4 Nxe4 26. Rxe4 Nb7 27. Qxb6 Qc8 $15) 25... Nxd3 {[%emt 0:05:18] Pair of Knights!} 26. Qb1 {[%emt 0:05:23]} Nxe1 {[%emt 0:02:13]} 27. Rxe1 {[%emt 0:01:36] Threatening mate with Bd5+.} e4 $2 {[%emt 0:02:18][%mdl 8192]} (27... Rd8 $11 {and Black is okay.}) 28. Bxe4 {[%emt 0:00:52]} (28. Rxe4 $142 f5 29. Rxd4) 28... Rxe4 $18 {[%emt 0:02:36]} 29. Qxe4 {[%emt 0:00:10] Qd5+ is the strong threat.} Qd8 {[%emt 0:02:03]} 30. Qg6 {[%emt 0:00:59] Strongly threatening Nf5.} ({Don't play} 30. Rd1 $6 Qe8 31. Qd5+ (31. Qxd4 Qe6 $16) (31. Rxd4 Qxe4 32. Rxe4 Kf8 $14) 31... Kh7 $16) 30... Qf8 {[%emt 0:04:00] [#]} 31. Nf5 $1 {[%emt 0:00:32][%csl LRd4,LRh6][%cal Bh4f5,Bf5h6,Bh6f7][%mdl 32] aiming for Nxh6+.} Nc6 {[%emt 0:00:21]} (31... Nxc4 $2 32. Re7 Qxe7 33. Nxe7+ $18) 32. Nxh6+ {[%emt 0:04:14]} Kh8 {[%emt 0:00:02]} 33. Nf7+ {[%emt 0:08:14]} Kg8 {[%emt 0:00:01]} 34. Nh6+ {[%emt 0:01:19]} Kh8 {[%emt 0:00:01]} 35. Nf7+ {[%emt 0:00:06]} Kg8 {[%emt 0:00:17] [#]} 36. Ng5 {[%emt 0:00:10][%mdl 512]} fxg5 {[%emt 0:00:03]} 37. Qxc6 {[%emt 0:00:17][%mdl 4096] Endgame KQR-KQR} Rd8 {[%emt 0:00:27]} 38. Qxb6 {[%emt 0:01:54]} d3 {[%emt 0:01:04]} 39. Rd1 {[%emt 0:01:08]} Kh8 {[%emt 0:05:50]} (39... Qe8 $142 40. c5 d2) 40. Qe3 {[%emt 0:00:58][%csl LRd3,LRg5]} Qf5 {[%emt 0:00:05]} 41. c5 {[%emt 0:00:12]} Qg6 {[%emt 0:04:07]} 42. c6 {[%emt 0:00:35]} Re8 {[%emt 0:02:07]} 43. Qxd3 {[%emt 0:00:36]} Qxc6 {[%emt 0:00:06]} 44. Qd5 {[%emt 0:00:42]} Qf6 {[%emt 0:00:25]} (44... Qxd5 $142 45. Rxd5 Ra8 46. Rxg5 Kh7) 45. Kg2 {[%emt 0:00:38]} Rf8 {[%emt 0:02:17]} 46. Rd2 {[%emt 0:00:01]} Kh7 {[%emt 0:00:14]} 47. a4 {[%emt 0:00:05][%cal Ba2a4,Ba4a5][%mdl 32]} Re8 {[%emt 0:00:17]} 48. Qf3 {[%emt 0:00:36] White wants to mate with Qh5+.} Qe6 {[%emt 0:00:55]} 49. Rd5 {[%emt 0:00:38]} Qc6 {[%emt 0:02:15]} (49... g4 $142 50. Qd3+ Kg8) 50. a5 {[%emt 0:00:57]} Rf8 {[%emt 0:00:40] [#]} 51. Rf5 $3 {[%emt 0:00:11][%mdl 512] Weighted Error Value: White=0.45/Black=0.47} 1-0

[Event "New York Spring GM-A 2022"]
[Site "New York"]
[Date "2022.04.18"]
[Round "8.3"]
[White "Korley, Kassa"]
[Black "Liang, Jason"]
[Result "0-1"]
[ECO "A05"]
[WhiteElo "2399"]
[BlackElo "2419"]
[Annotator "TA"]
[PlyCount "70"]
[EventDate "2022.04.14"]
[EventType "tourn"]
[EventCountry "USA"]
[SourceTitle "playchess.com"]
[Source "ChessBase"]
[SourceQuality "1"]
[TimeControl "5400+30"]

{[%evp 10,70,27,25,22,26,21,9,23,0,0,0,30,2,62,55,51,51,88,44,52,54,47,49,50,60,80,56,52,48,62,22,23,13,12,16,13,16,16,9,15,14,8,-29,-33,-42,-46,-45,-48,-50,-27,-83,-85,-254,-255,-383,-379,-375,-364,-375,-362,-727,-699]} 1. Nf3 {[%emt 0:00:03]} Nf6 {[%emt 0:02:59]} 2. g3 {[%emt 0:00:06]} b5 {[%emt 0:00:32]} 3. Bg2 {[%emt 0:00:13]} Bb7 {[%emt 0:00:06]} 4. O-O {[%emt 0:00:07]} e6 {[%emt 0:00:08]} 5. d3 {[%emt 0:00:53]} d5 {[%emt 0:02:33]} 6. c4 {[%emt 0:01:02]} bxc4 {[%emt 0:13:24] A05: Réti Opening: 1 Nf3 Nf6.} 7. dxc4 {[%emt 0:00:07]} c6 {[%emt 0:00:07]} 8. Nc3 {[%emt 0:06:10][%cal Oe2e4]} Nbd7 {[%emt 0:01:19] The position is equal.} 9. e4 {[%emt 0:04:33] [#]} dxc4 $146 {[%emt 0:03:19]} ({Predecessor:} 9... Nb6 10. e5 Nfd7 11. cxd5 cxd5 12. Bf4 Be7 13. h4 O-O 14. Re1 Rc8 15. Rc1 Ba6 {0-1 (33) Wallace,J (2415)-Moroni,L (2547) Caleta 2018}) 10. Qe2 {[%emt 0:01:53]} Qa5 {[%emt 0:07:58]} 11. Rd1 {[%emt 0:01:56][%mdl 1024] White has compensation.} ({Don't play} 11. Qxc4 Ba6 12. Qxc6 Rc8 $17) 11... Nb6 {[%emt 0:01:50]} (11... Ba6 $11) 12. Bd2 {[%emt 0:16:59][%cal Oc3d5] [#] Strongly threatening Nd5!} Qa6 $1 {[%emt 0:09:14]} 13. Ne5 {[%emt 0:08:05]} Be7 {[%emt 0:03:21]} 14. Bf1 {[%emt 0:08:06]} O-O {[%emt 0:03:17]} 15. Nxc4 {[%emt 0:03:43]} Nxc4 {[%emt 0:05:45]} 16. Qxc4 {[%emt 0:00:07]} Qxc4 {[%emt 0:00:12]} 17. Bxc4 {[%emt 0:00:04]} Nd7 {[%emt 0:00:15]} 18. Bf4 {[%emt 0:02:54]} Nb6 {[%emt 0:00:26]} 19. Be2 {[%emt 0:01:19]} Rfd8 {[%emt 0:01:14]} 20. f3 {[%emt 0:06:26]} Bc5+ {[%emt 0:02:47]} 21. Kf1 {[%emt 0:00:07]} Bd4 {[%emt 0:00:25]} 22. Bd2 {[%emt 0:04:45][%cal Bf4d2,Bd2e1,Be1f2][%mdl 32]} e5 {[%emt 0:01:53]} 23. Be1 {[%emt 0:00:01]} Bc8 {[%emt 0:00:55][%cal Rc8h3]} 24. Bf2 {[%emt 0:00:15]} Be6 {[%emt 0:00:20]} 25. Rac1 {[%emt 0:02:54]} c5 {[%emt 0:05:56]} 26. Nb5 {[%emt 0:00:53]} Bxa2 {[%emt 0:01:35]} 27. Nxd4 {[%emt 0:02:42]} cxd4 {[%emt 0:01:54]} 28. Rc5 {[%emt 0:00:06]} f6 {[%emt 0:02:22]} 29. Ra1 {[%emt 0:00:10]} Be6 {[%emt 0:01:28]} 30. Bd3 {[%emt 0:00:31]} (30. b4 $11 {keeps the balance.}) 30... Rdc8 {[%emt 0:00:32]} 31. Rca5 {[%emt 0:03:37] This costs White the game.} (31. Rxc8+ $17 {might work better.} Rxc8 32. Rxa7) 31... Bc4 $19 {[%emt 0:01:21]} 32. Ke2 {[%emt 0:00:04] [#]} (32. R5a3 {is a better defense.}) 32... Rab8 $1 {[%emt 0:02:26] White must now prevent ...Bxd3+.} 33. Rxa7 {[%emt 0:03:41]} Bxd3+ {[%emt 0:00:12]} 34. Kxd3 {[%emt 0:00:04]} Nc4 {[%emt 0:00:11] Hoping for ...Rb3+.} 35. Rd7 $2 {[%emt 0:01:23]} (35. f4) 35... Rxb2 {[%emt 0:00:29] Weighted Error Value: White=0.36/Black=0.07 (flawless)} 0-1

[Event "New York Spring GM-A 2022"]
[Site "New York"]
[Date "2022.04.18"]
[Round "8.4"]
[White "Song, Edward"]
[Black "Nagy, Gabor"]
[Result "1-0"]
[ECO "B46"]
[WhiteElo "2383"]
[BlackElo "2530"]
[Annotator "TA"]
[PlyCount "95"]
[EventDate "2022.04.14"]
[EventType "tourn"]
[EventCountry "USA"]
[SourceTitle "playchess.com"]
[Source "ChessBase"]
[SourceQuality "1"]
[TimeControl "5400+30"]

{[%evp 15,94,25,39,31,13,11,11,4,21,8,11,10,28,10,20,-1,37,44,28,0,23,20,64,62,61,81,74,81,102,75,108,97,96,0,0,-30,-43,-34,-20,-33,-26,-57,0,0,0,0,0,0,0,0,495,66,66,73,71,57,189,189,270,293,455,395,446,219,214,125,408,404,397,103,131,0,445,424,29957,12529,29987,29988,29988,29989,29999]} 1. e4 {[%emt 0:00:03]} c5 {[%emt 0:00:14]} 2. Nf3 {[%emt 0:00:09]} e6 {[%emt 0:00:32]} 3. d4 {[%emt 0:00:07]} cxd4 {[%emt 0:00:07]} 4. Nxd4 {[%emt 0:00:04]} Nc6 {[%emt 0:00:14]} 5. Nc3 {[%emt 0:00:05]} a6 {[%emt 0:00:09]} 6. Nxc6 {[%emt 0:00:39]} bxc6 {[%emt 0:02:27]} 7. Bd3 {[%emt 0:00:07]} d5 {[%emt 0:00:07]} 8. O-O {[%emt 0:00:13]} Nf6 {[%emt 0:00:24]} 9. Qf3 {[%emt 0:00:08] B46: Sicilian: Taimanov: 5 Nc3 a6.} Be7 {[%emt 0:00:10] 9...Bb7 gains popularity.} 10. e5 {[%emt 0:00:20]} Nd7 {[%emt 0:00:09]} 11. Qg3 {[%emt 0:00:11] The position is equal.} Kf8 {[%emt 0:01:37]} 12. Ne2 {[%emt 0:00:39]} h5 {[%emt 0:02:31]} 13. Nd4 {[%emt 0:09:25] [#]} Qc7 $146 {[%emt 0:02:11]} ({Predecessor:} 13... Bb7 14. b4 h4 15. Qf4 Kg8 16. Rb1 h3 17. g3 Qc7 {½-½ (42) Filipchenko,V (2434)-Hrubcik,M (2425) ICCF email 2018}) 14. Re1 {[%emt 0:05:46][%cal Od4e6]} Kg8 {[%emt 0:06:15]} 15. Bf4 {[%emt 0:30:06]} h4 {[%emt 0:02:10]} 16. Qg4 {[%emt 0:03:42][%cal Od4e6]} Nc5 {[%emt 0:00:09][%cal Oh4h3,Bd7c5,Bc5a4,Ba4b2][%mdl 32]} 17. Bg5 {[%emt 0:05:30]} Bxg5 {[%emt 0:02:53]} 18. Qxg5 {[%emt 0:02:54]} Bb7 {[%emt 0:00:07]} 19. h3 {[%emt 0:03:41]} a5 {[%emt 0:01:08]} 20. Nb3 {[%emt 0:01:22]} Na4 {[%emt 0:04:11]} 21. Qg4 {[%emt 0:01:26]} Nxb2 {[%emt 0:02:18]} 22. Nc5 {[%emt 0:03:44]} Bc8 {[%emt 0:02:29]} 23. Rab1 {[%emt 0:08:43] &Bianco is much more active. The black rooks are badly placed.} Rb8 {[%emt 0:00:27]} 24. a3 {[%emt 0:01:48]} (24. Qg5 $16) 24... Nxd3 $11 {[%emt 1:09:31]} 25. cxd3 {[%emt 0:01:01]} Rxb1 {[%emt 0:00:00]} 26. Rxb1 {[%emt 0:00:04][%cal Be1b1,Bb1b6,Bb6c6][%mdl 32]} Qxe5 {[%emt 0:00:00]} 27. d4 {[%emt 0:04:20]} Qc7 {[%emt 0:00:00]} 28. Qg5 {[%emt 0:06:00][%cal Ob1b8] Prevents e5.} f6 {[%emt 0:00:00]} (28... Rh6 $15) 29. Qg6 {[%emt 0:00:24]} Qf7 {[%emt 0:00:00]} 30. Qc2 {[%emt 0:01:00]} g5 {[%emt 0:00:00]} 31. Rb6 {[%emt 0:00:34]} Kg7 {[%emt 0:00:00]} 32. Rxc6 {[%emt 0:00:12][%cal Oc6c7] Black must now prevent Rc7!} Re8 $2 {[%emt 0:00:00][%mdl 8192] [#]} (32... Qe8 $11 {and Black is okay.} 33. Nd3 (33. Rc7+ Kh6 $11) 33... Kh6) 33. Qc3 $2 {[%emt 0:04:03]} ({White must play} 33. Rc7 $1 $18 {[%cal Rc7f7][%mdl 512]} Qxc7 34. Nxe6+ $1 {[%mdl 512]} Bxe6 35. Qxc7+ Kg6 36. a4) 33... Kh6 $1 $14 {[%emt 0:00:00]} 34. Qxa5 {[%emt 0:00:21]} Qg6 {[%emt 0:00:00]} 35. Qe1 {[%emt 0:08:12] Prevents Qb1.} Qf5 {[%emt 0:00:00]} (35... Qc2 $14) 36. a4 $18 {[%emt 0:00:09][%cal Ba3a4,Ba4a5,Ba5a6][%mdl 32] Strongly threatening a5.} Kg6 {[%emt 0:00:00]} (36... Qc2 $142 37. f4 Qf5) 37. a5 {[%emt 0:00:13]} e5 {[%emt 0:00:00] [#]} (37... g4 $142 38. hxg4 (38. a6 gxh3 39. a7 hxg2 $18) 38... Qxg4) 38. a6 $1 {[%emt 0:00:26] Threatens to win with a7.} Bd7 {[%emt 0:00:00]} 39. Nxd7 {[%emt 0:00:40]} (39. Rb6 $142 exd4 40. Qa1) 39... Qxd7 {[%emt 0:00:00][%mdl 4096] Endgame KQR-KQR} 40. Qb1+ {[%emt 0:00:57]} Qf5 $2 {[%emt 0:00:00][%mdl 8192] [#]} (40... e4 $16 {might work better.} 41. Qb6 Qe7) 41. Qb5 $1 {[%emt 0:00:39][%cal Oc6f6] Hoping for Rxf6+!} Re7 {[%emt 0:00:00]} 42. Qc5 {[%emt 0:00:45]} (42. Qb4 $18 {is more deadly.} Re8 43. a7) 42... Re8 $16 {[%emt 0:00:00]} 43. Qb5 $2 {[%emt 0:00:29][%mdl 8192] Inhibits Qb1+.} (43. Qxd5 $16 exd4 44. Qxd4 Re1+ 45. Kh2 Qe5+ 46. Qxe5 Rxe5 47. g4 (47. a7 Ra5 $16)) 43... Re7 $18 {[%emt 0:00:00]} 44. Qb8 {[%emt 0:00:37]} g4 {[%emt 0:00:00]} (44... exd4 $18 45. a7 Re1+ 46. Kh2 Ra1) 45. hxg4 {[%emt 0:00:28]} ({Less strong is} 45. a7 g3 46. fxg3 hxg3 $16) 45... Qe4 {[%emt 0:00:00]} 46. Qg8+ {[%emt 0:00:30] White mates.} Rg7 {[%emt 0:00:00]} 47. Qe8+ {[%emt 0:00:05]} Kh6 {[%emt 0:00:00]} 48. Qh5# {[%emt 0:00:36] Weighted Error Value: White=0.39/Black=0.62} 1-0